bitfinex-derivatives/quotes_ETHF0:USTF0_20250220
["timestamp","ask_amount","ask_price","bid_price","bid_amount"]
[1740040845389,1.30229,2730.4,2730.2,3.07751]
[1740040845595,0.7325,2730.3,2730.1,3.07754]
[1740040845891,1.30229,2730.4,2730.2,0.73253]
[1740040846296,0.5698,2730.4,2729.9,0.5449]
[1740040846495,0.73253,2730.3,2730.0,2.345]
[1740040846688,0.73253,2730.3,2730.1,0.73254]
[1740040848292,0.73257,2730.1,2730.0,0.73258]
[1740040848490,0.73261,2729.9,2729.8,0.00366198]
[1740040849296,1.28911,2729.9,2729.8,0.73629198]
[1740040849788,1.28911,2729.9,2729.8,0.00366198]
[1740040850095,0.5565,2729.9,2729.8,0.73629198]
[1740040850989,1.28911,2729.9,2729.8,0.73629198]
[1740040851187,1.28911,2729.9,2729.8,0.00366198]
[1740040851894,0.5565,2729.9,2729.8,0.73629198]
[1740040852594,0.5657,2730.0,2729.9,0.73261]
[1740040854201,0.5657,2730.0,2729.8,0.54436198]
[1740040854396,1.29829,2730.0,2729.8,1.27698198]
[1740040854595,1.29829,2730.0,2729.8,0.54436198]
[1740040854897,0.5361,2729.9,2729.8,1.27699198]
[1740040863103,1.26871,2729.9,2729.8,0.00366198]
[1740040864103,0.73272,2729.5,2729.4,0.73272]
[1740040865301,0.5693,2729.5,2729.0,3.2078]
[1740040865508,0.73278,2729.3,2729.2,0.73278]
[1740040865806,0.5625,2729.4,2729.0,3.2078]
[1740040866008,0.5625,2729.4,2729.2,0.73278]
[1740040866308,0.73279,2729.3,2729.0,3.2078]
[1740040866806,1.29525,2729.4,2729.0,3.2078]
[1740040867000,0.5625,2729.4,2729.0,3.2078]
[1740040867302,0.5625,2729.4,2729.3,0.73277]
[1740040867899,0.5625,2729.4,2729.0,3.2078]
[1740040868307,0.575,2729.3,2729.2,0.7328]
[1740040871009,1.30778,2729.3,2729.0,3.2078]
[1740040871315,0.575,2729.3,2728.8,0.5609]
[1740040871505,1.8321,2729.1,2728.4,3.2078]
[1740040871704,0.73294,2728.7,2728.5,0.73298]
[1740040871906,1.1403,2728.6,2728.5,0.73298]
[1740040874314,3.2078,2728.9,2728.4,3.2078]
[1740040874518,3.2078,2728.9,2728.8,0.7329]
[1740040874709,3.2078,2728.9,2728.5,1.1109]
[1740040874912,2.45492,2728.8,2728.4,3.2078]
[1740040875110,1.722,2728.8,2728.4,3.2078]
[1740040875315,1.722,2728.8,2728.7,0.73293]
[1740040876716,1.722,2728.8,2728.4,3.2078]
[1740040877015,1.722,2728.8,2728.7,0.73293]
[1740040879314,2.4549,2728.8,2728.4,3.2078]
[1740040879512,2.4549,2728.8,2728.6,0.73294]
[1740040879714,0.73295,2728.7,2728.6,0.73295]
[1740040880312,0.73295,2728.7,2728.4,3.2078]
[1740040880514,0.73295,2728.7,2728.6,0.73296]
[1740040880821,2.45492,2728.8,2728.4,3.2078]
[1740040881022,2.45492,2728.8,2728.6,0.73293]
[1740040881319,0.73293,2728.7,2728.6,0.73293]
[1740040881717,2.45492,2728.8,2728.4,3.2078]
[1740040881919,2.45492,2728.8,2728.7,0.73293]
[1740040883916,2.45492,2728.8,2728.6,0.73295]
[1740040883917,0.73293,2728.7,2728.6,0.73295]
[1740040884119,0.73293,2728.7,2728.6,0.73296]
[1740040884120,0.73295,2728.7,2728.6,0.73296]
[1740040884325,1.722,2728.8,2727.8,23.5248]
[1740040884623,3.94081,2728.5,2728.4,0.73301]
[1740040884824,3.94081,2728.5,2727.9,5.86447]
[1740040884825,3.2078,2728.5,2727.9,1.6856]
[1740040885136,0.73305,2728.3,2728.2,0.73305]
[1740040885320,1.7075,2728.4,2727.9,4.0316]
[1740040885523,2.44052,2728.4,2728.3,0.73304]
[1740040885919,1.7075,2728.4,2728.3,0.73304]
[1740040889426,1.7075,2728.4,2728.3,0.73510264]
[1740040889627,5.5548,2728.8,2728.3,0.00206264]
[1740040889830,2.37824,2728.7,2728.6,0.73295]
[1740040890028,1.6453,2728.7,2728.3,0.00206264]
[1740040890328,0.73301,2728.4,2728.3,0.73508264]
[1740040890527,1.6453,2728.7,2728.3,0.00206264]
[1740040890825,0.733,2728.5,2728.4,0.73301]
[1740040891429,3.9408,2728.5,2728.4,0.73301]
[1740040891828,3.2078,2728.5,2728.4,0.73301]
[1740040892122,3.9408,2728.5,2728.4,0.73301]
[1740040892640,3.2078,2728.5,2728.4,0.73301]
[1740040892823,3.2078,2728.5,2728.4,1.30501]
[1740040893024,3.2078,2728.5,2728.4,0.73301]
[1740040893326,3.94078,2728.5,2728.4,0.73301]
[1740040893528,3.7696,2728.5,2728.4,0.73301]
[1740040894526,0.5618,2728.5,2728.4,0.73301]
[1740040894733,1.1461,2728.6,2728.5,0.73298]
[1740040897025,0.5414,2728.7,2728.4,0.5456]
[1740040897225,0.5414,2728.7,2728.6,0.73296]
[1740040897631,1.6344,2728.7,2728.6,0.73296]
[1740040898328,0.73297,2728.6,2728.5,0.73298]
[1740040898528,1.6344,2728.7,2728.6,0.73296]
[1740040902030,3.2078,2728.8,2728.7,0.73293]
[1740040902632,3.7489,2728.8,2728.7,0.73293]
[1740040903727,3.2078,2728.8,2728.7,0.73293]
[1740040906133,3.2078,2729.1,2728.7,0.73293]
[1740040906335,3.2078,2729.1,2729.0,0.73285]
[1740040907435,3.2078,2729.1,2728.6,3.4535]
[1740040907643,0.73289,2728.9,2728.7,0.7329]
[1740040907839,0.73289,2728.9,2728.8,0.7329]
[1740040908040,3.2078,2729.1,2728.8,0.7329]
[1740040908234,0.73286,2729.0,2728.8,0.7329]
[1740040909040,0.73288,2728.9,2728.8,0.7329]
[1740040909641,3.2078,2729.1,2728.7,2.346]
[1740040909837,0.73287,2729.0,2728.9,0.73287]
[1740040910639,3.2078,2729.1,2728.5,0.5416]
[1740040910934,0.73299,2728.5,2728.4,0.733]
[1740040911542,1.1505,2728.7,2728.4,0.733]
[1740040911735,0.73298,2728.6,2728.4,0.733]
[1740040912242,0.73296,2728.6,2728.4,0.733]
[1740040912743,0.73296,2728.6,2728.3,0.00206264]
[1740040912942,0.73296,2728.6,2728.5,0.73298]
[1740040913339,1.1505,2728.7,2728.3,0.00206264]
[1740040913539,0.73301,2728.4,2728.3,0.73508264]
[1740040913740,1.1505,2728.7,2728.3,0.00206264]
[1740040914040,0.733,2728.5,2728.4,0.73301]
[1740040915435,1.1505,2728.7,2728.3,0.00206264]
[1740040916335,0.73297,2728.6,2728.5,0.73297]
[1740040916641,1.1505,2728.7,2728.3,0.00206264]
[1740040917034,0.733,2728.5,2728.4,0.733]
[1740040917234,1.1505,2728.7,2728.3,0.00206264]
[1740040917536,0.73298,2728.6,2728.4,0.73298]
[1740040918240,1.1505,2728.7,2728.4,0.73298]
[1740040918552,0.73298,2728.5,2728.4,0.73298]
[1740040919043,0.73301,2728.4,2728.3,0.73508264]
[1740040919445,0.73301,2728.4,2728.3,0.00206264]
[1740040920043,0.73301,2728.4,2728.3,0.73510264]
[1740040920841,0.73301,2728.4,2728.3,0.00206264]
[1740040921150,0.73301,2728.4,2728.3,0.73510264]
[1740040922143,3.2078,2728.5,2728.4,0.73301]
[1740040923150,3.94078,2728.5,2728.4,0.73301]
[1740040923749,3.2078,2728.5,2728.4,0.73301]
[1740040924144,3.2078,2728.5,2728.3,0.73508264]
[1740040924449,0.73301,2728.4,2728.3,0.73508264]
[1740040924947,3.94079,2728.5,2728.4,0.73301]
[1740040926544,3.2078,2728.5,2728.4,0.73301]
[1740040926748,3.2078,2728.5,2728.4,1.31581]
[1740040928147,2.37833,2729.1,2728.9,0.73285]
[1740040928346,2.37833,2729.1,2728.6,2.346]
[1740040928651,1.6455,2729.1,2729.0,0.73285]
[1740040928950,1.087,2729.1,2729.0,0.73285]
[1740040929951,3.2078,2729.2,2729.0,2.346]
[1740040930143,0.5413,2729.5,2729.0,2.346]
[1740040930144,3.2078,2729.5,2729.4,0.73274]
[1740040935448,1.6808,2729.6,2729.5,0.73272]
[1740040935654,4.8886,2729.6,2729.5,0.73272]
[1740040937859,4.3473,2729.6,2729.5,0.73272]
[1740040938248,0.005493,2729.7,2729.4,2.346]
[1740040938556,0.005493,2729.7,2729.6,0.73269]
[1740040944060,0.005493,2729.7,2729.6,1.31369]
[1740040945355,0.005493,2729.7,2729.6,1.86229]
[1740040947163,0.005493,2729.7,2729.6,42.66229]
[1740040947759,0.5465,2730.4,2730.3,0.7325]
[1740040952362,4.3367,2730.5,2730.2,2.904]
[1740040952563,0.005493,2730.6,2730.2,2.904]
[1740040952859,0.005493,2730.6,2730.5,0.73245]
[1740040953358,0.005493,2730.6,2730.5,3.94025]
[1740040956469,0.005493,2730.6,2730.5,9.94025]
[1740040956658,0.005493,2730.6,2730.5,3.94025]
[1740040957266,0.005493,2730.6,2730.5,9.94025]
[1740040961167,3e-06,2730.6,2730.5,9.94025]
[1740040962273,3e-06,2730.6,2730.5,50.74025]
[1740040963673,1.686,2731.6,2731.5,0.73218]
[1740040968679,0.005493,2731.8,2731.7,0.73213]
[1740040968975,0.005493,2731.8,2731.7,3.07613]
[1740040969976,0.571493,2731.8,2731.7,3.07613]
[1740040985485,0.571493,2731.8,2731.7,6.28393]
[1740040985688,0.005493,2731.8,2731.7,6.28393]
[1740040986185,0.005493,2731.8,2731.7,47.08393]
[1740040989685,3.2078,2732.8,2732.2,0.73199]
[1740040989880,0.5876,2732.7,2732.6,0.73188]
[1740040990079,1.1349,2732.7,2732.6,0.73188]
[1740040995493,1.1349,2732.7,2732.5,3.2078]
[1740040995691,1.1349,2732.7,2732.6,0.73188]
[1740040998692,0.590093,2732.9,2732.8,0.73183]
[1740040998890,0.590093,2732.9,2732.8,3.07383]
[1740040999196,0.005493,2732.9,2732.8,3.07383]
[1740041001405,0.583893,2732.9,2732.8,3.07383]
[1740041002398,0.583893,2732.9,2732.5,3.2078]
[1740041002598,0.583893,2732.9,2732.6,2.342]
[1740041002795,1.315703,2732.9,2732.7,0.73184]
[1740041004001,1.315703,2732.9,2732.6,3.07386]
[1740041004200,0.73184,2732.8,2732.5,3.2078]
[1740041004405,0.73184,2732.8,2732.7,2.342]
[1740041005310,0.583893,2732.9,2732.7,2.342]
[1740041005496,0.73183,2732.8,2732.7,2.342]
[1740041006305,1.315713,2732.9,2732.7,3.07386]
[1740041006605,0.73183,2732.8,2732.7,3.07386]
[1740041006803,0.73183,2732.8,2732.7,2.342]
[1740041007395,0.73188,2732.6,2732.5,3.2078]
[1740041007601,0.73188,2732.6,2732.5,5.5498]
[1740041008203,0.73187,2732.7,2732.5,5.5498]
[1740041008410,0.73188,2732.6,2732.5,5.5498]
[1740041008603,1.31738,2732.6,2732.5,5.5498]
[1740041009106,0.73191,2732.5,2732.4,0.005493]
[1740041009311,1.29761,2732.5,2732.4,2.347493]
[1740041014910,1.29761,2732.5,2732.4,0.005493]
[1740041015113,0.73206,2732.0,2731.9,0.73206]
[1740041015416,0.73206,2732.0,2731.9,3.07406]
[1740041016014,2.39016,2732.4,2731.9,2.342]
[1740041016319,0.73204,2732.1,2732.0,0.73203]
[1740041016522,0.73198,2732.3,2732.2,0.73197]
[1740041016815,1.29225,2732.4,2732.3,0.73196]
[1740041017019,0.73197,2732.3,2732.2,0.73197]
[1740041017219,0.5603,2732.4,2732.0,0.5366]
[1740041017521,0.73198,2732.3,2732.1,0.73202]
[1740041017914,1.29226,2732.4,2732.2,0.73198]
[1740041018520,3.7735,2732.5,2732.0,0.5366]
[1740041018718,3.7735,2732.5,2732.4,0.73194]
[1740041019522,3.7735,2732.5,2732.4,1.31654]
[1740041019914,3.2078,2732.5,2732.4,1.31654]
[1740041021020,0.541,2732.7,2732.4,0.5846]
[1740041021321,1.27288,2732.7,2732.4,1.31652]
[1740041021521,0.541,2732.7,2732.5,0.73189]
[1740041022323,1.27287,2732.7,2732.4,1.31651]
[1740041022923,0.541,2732.7,2732.4,0.5846]
[1740041023326,1.27287,2732.7,2732.4,1.31653]
[1740041024324,1.27287,2732.7,2732.4,0.5846]
[1740041024624,0.541,2732.7,2732.4,0.5846]
[1740041024824,1.27287,2732.7,2732.5,0.73191]
[1740041025124,0.541,2732.7,2732.4,0.5846]
[1740041025325,1.27287,2732.7,2732.5,0.7319]
[1740041025523,0.541,2732.7,2732.6,0.73188]
[1740041025719,0.541,2732.7,2732.4,0.5846]
[1740041025929,0.541,2732.7,2732.5,0.73191]
[1740041026123,0.541,2732.7,2732.4,0.5846]
[1740041026426,1.27288,2732.7,2732.5,0.73191]
[1740041027129,1.27286,2732.7,2732.5,0.73191]
[1740041027422,0.541,2732.7,2732.4,0.5846]
[1740041027627,0.73188,2732.6,2732.4,1.31651]
[1740041027829,0.541,2732.7,2732.4,0.5846]
[1740041028323,1.27286,2732.7,2732.6,0.73188]
[1740041028629,1.27288,2732.7,2732.5,0.7319]
[1740041030922,0.541,2732.7,2732.4,0.5846]
[1740041031123,0.73188,2732.6,2732.5,0.7319]
[1740041031427,1.27288,2732.7,2732.5,0.7319]
[1740041032328,1.27287,2732.7,2732.5,0.7319]
[1740041032523,0.541,2732.7,2732.4,0.5846]
[1740041032832,1.27287,2732.7,2732.5,0.73191]
[1740041033735,1.27288,2732.7,2732.5,0.73191]
[1740041034335,0.73191,2732.5,2732.4,0.5846]
[1740041035933,0.541,2732.7,2732.4,0.5846]
[1740041036135,0.7319,2732.6,2732.4,1.31653]
[1740041036833,0.541,2732.7,2732.3,3.2078]
[1740041037035,0.73194,2732.4,2732.3,3.2078]
[1740041037331,0.73194,2732.4,2732.3,5.5498]
[1740041037532,0.73198,2732.3,2732.2,2.342]
[1740041037734,1.84186,2732.3,2732.2,3.07399]
[1740041037931,1.1099,2732.3,2732.2,3.07399]
[1740041038335,0.73192,2732.5,2732.3,0.73195]
[1740041038532,1.32272,2732.5,2732.3,1.27025]
[1740041038930,1.32272,2732.5,2732.4,0.73194]
[1740041039436,0.5908,2732.5,2732.4,0.73194]
[1740041040634,1.32271,2732.5,2732.3,1.85094]
[1740041040830,0.5908,2732.5,2732.4,0.73194]
[1740041042736,0.5619,2732.6,2732.3,1.119]
[1740041042937,0.5619,2732.6,2732.5,0.73191]
[1740041045037,0.541,2732.7,2732.6,0.73188]
[1740041046039,0.541,2732.7,2732.6,3.07388]
[1740041047134,1.127,2732.8,2732.7,0.73186]
[1740041047740,1.6738,2732.8,2732.7,0.73186]
[1740041048339,2.40564,2732.8,2732.6,3.07387]
[1740041048646,0.73186,2732.7,2732.6,2.342]
[1740041053647,0.73189,2732.6,2732.5,0.73189]
[1740041054747,1.6738,2732.8,2732.3,5.5498]
[1740041054947,0.73193,2732.5,2732.4,0.73193]
[1740041056458,1.6738,2732.8,2732.3,5.5498]
[1740041056752,1.1186,2732.4,2732.3,6.28176]
[1740041057756,0.73188,2732.7,2732.5,0.7319]
[1740041057958,1.1186,2732.6,2732.5,0.7319]
[1740041058854,0.5334,2732.6,2732.5,0.7319]
[1740041061353,1.87314,2732.8,2732.6,0.73187]
[1740041061555,0.73191,2732.6,2732.4,0.73193]
[1740041061758,1.6908,2732.8,2732.3,5.5498]
[1740041061964,1.6908,2732.8,2732.4,0.73193]
[1740041062263,0.73191,2732.6,2732.4,0.73193]
[1740041062761,0.73189,2732.6,2732.4,0.73194]
[1740041062962,1.6908,2732.8,2732.3,5.5498]
[1740041063150,0.73191,2732.6,2732.4,0.73194]
[1740041064564,0.73191,2732.6,2732.3,2.342]
[1740041064757,0.73191,2732.6,2732.5,0.73191]
[1740041069156,0.73186,2732.7,2732.6,0.73187]
[1740041070063,4.8986,2732.8,2732.3,2.342]
[1740041070267,0.7319,2732.6,2732.5,0.73191]
[1740041071165,0.73187,2732.7,2732.6,0.73188]
[1740041074475,4.8986,2732.8,2732.3,2.342]
[1740041074666,0.7319,2732.6,2732.5,0.7319]
[1740041075270,0.73188,2732.7,2732.6,0.73188]
[1740041075671,0.73188,2732.7,2732.3,2.342]
[1740041075971,0.73188,2732.7,2732.6,0.73188]
[1740041077176,0.73187,2732.7,2732.6,0.73187]
[1740041078065,0.73188,2732.7,2732.6,0.73187]
[1740041080173,4.8986,2732.8,2732.3,2.342]
[1740041080374,4.8986,2732.8,2732.7,0.73186]
[1740041081473,1.6908,2732.8,2732.7,0.73186]
[1740041083374,1.6908,2732.8,2732.7,3.07386]
[1740041093477,0.005493,2732.9,2732.8,0.73183]
[1740041093979,0.005493,2732.9,2732.8,41.53183]
[1740041094681,0.005493,2732.9,2732.8,0.73183]
[1740041100184,0.005493,2732.9,2732.8,1.26723]
[1740041102682,0.73187,2732.7,2732.5,3.2078]
[1740041102986,1.6739,2732.6,2732.5,3.93971]
[1740041103279,1.6739,2732.6,2732.5,6.28071]
[1740041104187,1.6739,2732.6,2732.5,3.93971]
[1740041104391,1.6739,2732.6,2732.5,6.28071]
[1740041104883,2.40578,2732.6,2732.5,5.5488]
[1740041105590,1.6739,2732.6,2732.5,5.5488]
[1740041105888,1.6739,2732.6,2732.5,2.341]
[1740041105889,2.40578,2732.6,2732.5,2.341]
[1740041107693,1.6739,2732.6,2732.5,2.341]
[1740041107893,1.6739,2732.6,2732.5,3.07291]
[1740041110788,2.40578,2732.6,2732.5,2.341]
[1740041111593,2.40578,2732.6,2732.5,3.07291]
[1740041112792,1.6739,2732.6,2732.5,3.07291]
[1740041113189,2.40578,2732.6,2732.5,3.07291]
[1740041113395,1.6739,2732.6,2732.5,3.07291]
[1740041113598,2.40578,2732.6,2732.5,3.07291]
[1740041114697,1.6739,2732.6,2732.5,3.07291]
[1740041115093,1.6739,2732.6,2732.5,6.28071]
[1740041115494,0.737303,2732.9,2732.7,0.73183]
[1740041115695,0.005493,2732.9,2732.6,0.5906]
[1740041116194,0.73186,2732.7,2732.6,0.5906]
[1740041116397,0.73184,2732.8,2732.6,1.32247]
[1740041116795,0.575,2732.7,2732.6,1.32247]
[1740041117202,0.575,2732.7,2732.6,0.73187]
[1740041117903,0.575,2732.7,2732.6,1.31497]
[1740041118093,0.005493,2732.9,2732.6,0.5831]
[1740041118394,0.005493,2732.9,2732.8,0.73183]
[1740041120689,0.737293,2732.9,2732.8,0.73183]
[1740041122299,0.005493,2732.9,2732.8,0.73183]
[1740041122695,0.737293,2732.9,2732.8,0.73183]
[1740041124403,0.005493,2732.9,2732.8,0.73183]
[1740041126708,0.73187,2732.7,2732.5,3.9397]
[1740041126903,1.6178,2732.6,2732.5,3.9397]
[1740041127103,1.6178,2732.6,2732.5,6.2807]
[1740041127709,1.6178,2732.6,2732.5,5.5488]
[1740041127900,1.6178,2732.6,2732.5,6.28071]
[1740041128713,2.34968,2732.6,2732.5,5.5488]
[1740041129406,2.34968,2732.6,2732.5,6.28071]
[1740041129407,1.6178,2732.6,2732.5,6.28071]
[1740041129802,1.6178,2732.6,2732.5,3.93971]
[1740041130003,1.6178,2732.6,2732.5,6.28071]
[1740041131109,0.005493,2732.9,2732.5,5.5488]
[1740041131314,0.73183,2732.8,2732.6,1.26856]
[1740041132110,0.73186,2732.8,2732.6,1.26858]
[1740041132310,0.5393,2732.7,2732.6,1.26858]
[1740041133103,0.5393,2732.7,2732.6,0.5367]
[1740041133104,1.27116,2732.7,2732.6,0.5367]
[1740041133707,1.27116,2732.7,2732.5,5.5488]
[1740041133908,1.27116,2732.7,2732.5,6.28071]
[1740041134209,0.73188,2732.6,2732.5,5.5488]
[1740041134414,1.82648,2732.6,2732.5,5.5488]
[1740041135114,1.0946,2732.6,2732.5,6.28071]
[1740041135804,1.0946,2732.6,2732.5,3.07291]
[1740041137714,1.82648,2732.6,2732.5,3.07291]
[1740041139213,1.0946,2732.6,2732.3,3.2078]
[1740041139415,0.73191,2732.5,2732.4,3.07293]
[1740041139914,1.0946,2732.6,2732.4,3.07293]
[1740041140115,0.73191,2732.5,2732.4,3.07293]
[1740041140409,0.73191,2732.5,2732.4,2.341]
[1740041140610,0.73201,2732.2,2732.0,0.73204]
[1740041140811,1.6415,2732.1,2732.0,3.07304]
[1740041141008,1.6415,2732.1,2732.0,3.62914]
[1740041142715,0.73198,2732.3,2732.1,0.73201]
[1740041143117,0.5699,2732.2,2732.1,0.73201]
[1740041143710,0.5699,2732.2,2732.0,2.8971]
[1740041144023,1.1193,2732.1,2732.0,3.07304]
[1740041147622,0.5699,2732.2,2732.1,0.73202]
[1740041148124,0.5699,2732.2,2732.1,1.31762]
[1740041150514,1.85433,2732.5,2732.3,0.73195]
[1740041150720,1.6613,2732.5,2732.4,0.73194]
[1740041151121,2.39321,2732.5,2732.3,0.73195]
[1740041151319,2.39322,2732.5,2732.3,0.73194]
[1740041153019,2.39322,2732.5,2732.4,2.341]
[1740041153219,1.6613,2732.5,2732.4,3.07294]
[1740041154026,2.39321,2732.5,2732.4,2.341]
[1740041154619,1.6613,2732.5,2732.4,2.341]
[1740041154817,1.6613,2732.5,2732.4,3.07294]
[1740041155425,1.6613,2732.5,2732.4,0.73194]
[1740041155727,1.6613,2732.5,2732.3,3.07296]
[1740041156626,1.6613,2732.5,2732.4,0.73194]
[1740041156828,13.68045219,2732.9,2732.4,0.5325]
[1740041157025,0.7319,2732.6,2732.4,2.39592]
[1740041157623,0.5809,2732.8,2732.4,1.664]
[1740041157822,0.73191,2732.5,2732.4,2.39592]
[1740041158032,0.73187,2732.7,2732.5,0.73189]
[1740041158223,0.73187,2732.7,2732.6,0.73188]
[1740041159028,0.73187,2732.7,2732.5,0.73189]
[1740041160129,0.73187,2732.7,2732.4,1.664]
[1740041160130,0.73187,2732.7,2732.6,0.73188]
[1740041160329,0.5809,2732.8,2732.6,0.73188]
[1740041160532,1.31275,2732.8,2732.6,0.73188]
[1740041161328,0.5809,2732.8,2732.4,1.664]
[1740041161728,1.31275,2732.8,2732.6,0.73188]
[1740041163631,0.5809,2732.8,2732.6,0.73188]
[1740041163931,0.5809,2732.8,2732.7,0.73186]
[1740041164125,0.5809,2732.8,2732.7,3.07286]
[1740041164330,13.68045219,2732.9,2732.8,0.73183]
[1740041164523,13.68045219,2732.9,2732.8,4.50353]
[1740041164719,13.68045219,2732.9,2732.8,5.58873]
[1740041166328,0.005493,2732.9,2732.8,5.58873]
[1740041180736,0.005493,2732.9,2732.8,4.48633]
[1740041180936,0.005493,2732.9,2732.8,6.27963]
[1740041181135,1.083793,2732.9,2732.8,6.27963]
[1740041181550,1.083793,2732.9,2732.8,3.2078]
[1740041181735,1.083793,2732.9,2732.8,3.93963]
[1740041182637,1.083793,2732.9,2732.8,3.2078]
[1740041183239,1.083793,2732.9,2732.8,3.93963]
[1740041184242,1.083793,2732.9,2732.8,3.2078]
[1740041184634,1.815593,2732.9,2732.8,3.2078]
[1740041185632,1.815593,2732.9,2732.1,1.83002]
[1740041185633,4.291593,2732.9,2732.6,2.34]
[1740041185841,0.73194,2732.4,2732.2,23.4998]
[1740041186140,1.6348,2732.3,2732.2,65.03179]
[1740041186341,1.6348,2732.3,2732.2,44.73979]
[1740041186536,1.6348,2732.3,2732.2,3.93979]
[1740041186736,1.6348,2732.3,2732.2,6.27979]
[1740041187245,0.005493,2732.9,2732.7,0.73185]
[1740041187543,1.699793,2732.9,2732.6,2.34]
[1740041187739,0.73183,2732.8,2732.6,2.34]
[1740041188137,1.699793,2732.9,2732.6,2.34]
[1740041188342,2.431613,2732.9,2732.6,3.07188]
[1740041188744,1.699793,2732.9,2732.6,2.34]
[1740041189243,0.73186,2732.7,2732.6,2.34]
[1740041190546,4.907593,2732.9,2732.5,2.34]
[1740041190547,0.73188,2732.6,2732.5,2.34]
[1740041190746,4.48808,2732.6,2732.5,2.34]
[1740041192648,0.73196,2732.4,2732.2,2.34]
[1740041192848,0.5648,2732.3,2732.2,3.07199]
[1740041193153,0.5648,2732.3,2732.2,0.73199]
[1740041193154,1.1132,2732.3,2732.2,0.73199]
[1740041194855,1.1132,2732.3,2732.1,2.8894]
[1740041195052,1.1132,2732.3,2732.1,3.62139]
[1740041195349,1.84516,2732.3,2732.1,2.34]
[1740041195549,1.1132,2732.3,2732.0,3.2078]
[1740041195750,1.1132,2732.3,2732.1,2.34]
[1740041195950,0.73199,2732.2,2732.1,2.34]
[1740041197249,1.1132,2732.3,2732.0,3.2078]
[1740041197553,0.73206,2732.0,2731.8,0.73209]
[1740041197852,1.1627,2731.9,2731.8,0.73209]
[1740041198045,1.7324,2731.9,2731.8,0.73209]
[1740041198547,1.7324,2731.9,2731.8,3.07209]
[1740041199052,1.7324,2731.9,2731.8,43.87209]
[1740041200647,1.7324,2731.9,2731.8,44.41359]
[1740041204143,3.93979,2732.3,2731.8,43.6815]
[1740041204347,1.1557,2732.2,2731.8,44.8136]
[1740041204643,1.1557,2732.2,2732.1,0.73202]
[1740041205250,0.5829,2732.2,2732.1,1.31302]
[1740041205754,0.5728,2732.4,2732.1,0.581]
[1740041206053,0.5728,2732.4,2732.3,0.73196]
[1740041206251,0.5675,2732.5,2732.2,2.8784]
[1740041206555,0.5675,2732.5,2732.4,0.73194]
[1740041207348,0.5675,2732.5,2732.2,3.4468]
[1740041207658,0.5675,2732.5,2732.4,0.73194]
[1740041208557,1.29942,2732.5,2732.3,0.73195]
[1740041209061,0.5675,2732.5,2732.3,0.73195]
[1740041209561,0.5675,2732.5,2732.2,3.4468]
[1740041209861,0.5675,2732.5,2732.3,0.73194]
[1740041210062,0.5675,2732.5,2732.4,0.73194]
[1740041214468,0.5828,2732.6,2732.5,0.73191]
[1740041214664,0.5769,2732.7,2732.3,3.2078]
[1740041214960,0.5769,2732.7,2732.6,0.73188]
[1740041215161,0.5769,2732.7,2732.6,3.07188]
[1740041215564,0.5769,2732.7,2732.6,2.34]
[1740041215969,0.5769,2732.7,2732.6,3.07188]
[1740041217166,1.30876,2732.7,2732.6,2.34]
[1740041220371,1.30876,2732.7,2732.3,3.2078]
[1740041220372,0.5769,2732.7,2732.5,2.34]
[1740041220572,0.73194,2732.4,2732.3,3.2078]
[1740041220779,0.73194,2732.4,2732.3,5.5478]
[1740041221171,0.5769,2732.7,2732.3,5.5478]
[1740041221375,0.5769,2732.7,2732.3,6.27976]
[1740041221376,0.73192,2732.5,2732.3,6.27976]
[1740041221579,0.5633,2732.4,2732.3,6.27976]
[1740041221777,1.1444,2732.4,2732.3,6.27976]
[1740041222077,1.87634,2732.4,2732.3,5.5478]
[1740041222884,1.1444,2732.4,2732.3,6.27976]
[1740041223474,1.1444,2732.4,2732.3,5.5478]
[1740041223475,1.87634,2732.4,2732.3,5.5478]
[1740041223881,1.1444,2732.4,2732.3,5.5478]
[1740041225082,1.87634,2732.4,2732.3,5.5478]
[1740041226374,0.73205,2732.0,2731.8,3.93989]
[1740041226584,1.1461,2731.9,2731.8,3.93989]
[1740041226786,1.6968,2731.9,2731.8,6.27989]
[1740041227186,2.42887,2731.9,2731.8,5.5478]
[1740041227387,1.6968,2731.9,2731.8,5.5478]
[1740041227585,1.6968,2731.9,2731.8,6.2799]
[1740041228079,1.6968,2731.9,2731.8,5.5478]
[1740041229188,2.42887,2731.9,2731.8,5.5478]
[1740041231084,1.6968,2731.9,2731.8,5.5478]
[1740041231291,2.42887,2731.9,2731.8,5.5478]
[1740041231994,2.42887,2731.9,2731.8,3.2078]
[1740041232186,2.42887,2731.9,2731.8,5.5478]
[1740041233589,2.42887,2731.9,2731.8,2.34]
[1740041233798,0.7321,2731.8,2731.7,0.737623]
[1740041233993,0.7321,2731.8,2731.7,3.077623]
[1740041234393,0.7321,2731.8,2731.7,2.345493]
[1740041236393,0.7321,2731.8,2731.7,3.077623]
[1740041236699,0.7321,2731.8,2731.7,2.345493]
[1740041236897,0.7321,2731.8,2731.7,0.005493]
[1740041237791,4.9046,2731.9,2731.3,2.34]
[1740041237992,0.73226,2731.2,2731.1,3.2078]
[1740041238195,0.73226,2731.2,2731.1,5.5478]
[1740041238398,0.73231,2731.0,2730.9,0.5869]